[Event "Kadrioru MK Open A"]
[Site "Tallinn, Paul Keres Chess House, Estonia"]
[Date "2023.02.12"]
[Round "5.4"]
[White "Tomson, Mihkel"]
[Black "Rychagov, Nikita"]
[Result "0-1"]
[TimeControl "90 minutes with 30 second increment from move 1"]
[WhiteElo "1590"]
[BlackElo "2192"]

1. Nf3 {

[%clk 01:29:54]

} {

[%emt 00:00:57]

} d5 {

[%clk 01:29:33]

} {

[%emt 00:01:29]

} 2. b3 {

[%clk 01:30:07]

} {

[%emt 00:00:23]

} Nf6 {

[%clk 01:29:34]

} {

[%emt 00:00:30]

} 3. Bb2 {

[%clk 01:29:59]

} {

[%emt 00:00:37]

} c5 {

[%clk 01:28:17]

} {

[%emt 00:01:49]

} 4. e3 {

[%clk 01:28:11]

} {

[%emt 00:02:17]

} g6 {

[%clk 01:28:25]

} {

[%emt 00:00:22]

} 5. c4 {

[%clk 01:19:27]

} {

[%emt 00:09:15]

} dxc4 {

[%clk 01:27:47]

} {

[%emt 00:01:09]

} 6. Bxc4 {

[%clk 01:19:33]

} {

[%emt 00:00:23]

} Bg7 {

[%clk 01:28:12]

} {

[%emt 00:00:05]

} 7. O-O {

[%clk 01:16:39]

} {

[%emt 00:03:23]

} O-O {

[%clk 01:27:03]

} {

[%emt 00:01:40]

} 8. h3 {

[%clk 01:12:14]

} {

[%emt 00:04:54]

} Nc6 {

[%clk 01:24:08]

} {

[%emt 00:03:26]

} 9. Nc3 {

[%clk 01:11:00]

} {

[%emt 00:01:44]

} a6 {

[%clk 01:23:27]

} {

[%emt 00:01:11]

} 10. Rc1 {

[%clk 01:06:35]

} {

[%emt 00:04:54]

} b5 {

[%clk 01:17:44]

} {

[%emt 00:06:15]

} 11. Be2 {

[%clk 01:06:42]

} {

[%emt 00:00:22]

} Bb7 {

[%clk 01:17:59]

} {

[%emt 00:00:16]

} 12. d4 {

[%clk 01:03:31]

} {

[%emt 00:03:41]

} cxd4 {

[%clk 01:18:08]

} {

[%emt 00:00:21]

} 13. Nxd4 {

[%clk 01:03:30]

} {

[%emt 00:00:30]

} Nxd4 {

[%clk 01:15:49]

} {

[%emt 00:02:50]

} 14. Qxd4 {

[%clk 01:03:42]

} {

[%emt 00:00:18]

} Qxd4 {

[%clk 01:14:22]

} {

[%emt 00:01:57]

} 15. exd4 {

[%clk 01:04:06]

} {

[%emt 00:00:05]

} Rac8 {

[%clk 01:12:13]

} {

[%emt 00:02:39]

} 16. Ba3 {

[%clk 00:58:10]

} {

[%emt 00:06:26]

} Rfe8 {

[%clk 01:10:39]

} {

[%emt 00:02:04]

} 17. Rfd1 {

[%clk 00:52:50]

} {

[%emt 00:05:49]

} e6 {

[%clk 00:57:52]

} {

[%emt 00:13:18]

} 18. Bc5 {

[%clk 00:48:18]

} {

[%emt 00:05:01]

} Nd7 {

[%clk 00:57:00]

} {

[%emt 00:01:22]

} 19. b4 {

[%clk 00:42:34]

} {

[%emt 00:06:13]

} e5 {

[%clk 00:54:21]

} {

[%emt 00:03:10]

} 20. Bf1 {

[%clk 00:33:57]

} {

[%emt 00:09:07]

} exd4 {

[%clk 00:52:57]

} {

[%emt 00:01:55]

} 21. Bxd4 {

[%clk 00:34:16]

} {

[%emt 00:00:10]

} Ne5 {

[%clk 00:51:54]

} {

[%emt 00:01:34]

} 22. a4 {

[%clk 00:27:41]

} {

[%emt 00:07:04]

} bxa4 {

[%clk 00:51:39]

} {

[%emt 00:00:45]

} 23. Nxa4 {

[%clk 00:28:05]

} {

[%emt 00:00:07]

} Rxc1 {

[%clk 00:48:32]

} {

[%emt 00:03:37]

} 24. Rxc1 {

[%clk 00:28:28]

} {

[%emt 00:00:05]

} Nf3+ {

[%clk 00:48:55]

} {

[%emt 00:00:08]

} 25. gxf3 {

[%clk 00:28:51]

} {

[%emt 00:00:06]

} Bxd4 {

[%clk 00:49:23]

} {

[%emt 00:00:02]

} 26. Kg2 {

[%clk 00:26:08]

} {

[%emt 00:03:13]

} Re5 {

[%clk 00:48:43]

} {

[%emt 00:01:10]

} 27. h4 {

[%clk 00:21:13]

} {

[%emt 00:05:25]

} Rf5 {

[%clk 00:47:41]

} {

[%emt 00:01:32]

} 28. Be2 {

[%clk 00:20:32]

} {

[%emt 00:01:11]

} Bd5 {

[%clk 00:39:44]

} {

[%emt 00:08:26]

} 29. Nc5 {

[%clk 00:20:14]

} {

[%emt 00:00:47]

} Rf4 {

[%clk 00:39:33]

} {

[%emt 00:00:42]

} 30. Rd1 {

[%clk 00:17:53]

} {

[%emt 00:02:50]

} Rxh4 {

[%clk 00:38:24]

} {

[%emt 00:01:39]

} 31. Nxa6 {

[%clk 00:13:52]

} {

[%emt 00:04:31]

} Kf8 {

[%clk 00:34:02]

} {

[%emt 00:04:52]

} 32. b5 {

[%clk 00:12:19]

} {

[%emt 00:02:03]

} Ke7 {

[%clk 00:32:40]

} {

[%emt 00:01:52]

} 33. Nb4 {

[%clk 00:12:04]

} {

[%emt 00:00:45]

} Bb7 {

[%clk 00:31:08]

} {

[%emt 00:02:02]

} 34. Rc1 {

[%clk 00:08:58]

} {

[%emt 00:03:36]

} Kd6 {

[%clk 00:30:15]

} {

[%emt 00:01:24]

} 35. Nc6 {

[%clk 00:09:07]

} {

[%emt 00:00:21]

} Bf6 {

[%clk 00:26:42]

} {

[%emt 00:04:03]

} 36. Na5 {

[%clk 00:09:12]

} {

[%emt 00:00:25]

} Bd5 {

[%clk 00:26:06]

} {

[%emt 00:01:05]

} 37. Nc4+ {

[%clk 00:07:05]

} {

[%emt 00:02:39]

} Bxc4 {

[%clk 00:24:52]

} {

[%emt 00:01:44]

} 38. Bxc4 {

[%clk 00:07:23]

} {

[%emt 00:00:12]

} Bd4 {

[%clk 00:24:35]

} {

[%emt 00:00:47]

} 39. Bxf7 {

[%clk 00:07:13]

} {

[%emt 00:00:40]

} Bc5 {

[%clk 00:24:50]

} {

[%emt 00:00:15]

} 40. Bg8 {

[%clk 00:07:08]

} {

[%emt 00:00:35]

} Rb4 {

[%clk 00:23:59]

} {

[%emt 00:01:21]

} 41. Rd1+ {

[%clk 00:06:04]

} {

[%emt 00:01:33]

} Ke7 {

[%clk 00:23:43]

} {

[%emt 00:00:46]

} 42. Bd5 {

[%clk 00:04:26]

} {

[%emt 00:02:08]

} Rxb5 {

[%clk 00:23:36]

} {

[%emt 00:00:37]

} 43. Rh1 {

[%clk 00:04:31]

} {

[%emt 00:00:25]

} h5 {

[%clk 00:23:37]

} {

[%emt 00:00:29]

} 44. Rc1 {

[%clk 00:04:41]

} {

[%emt 00:00:20]

} Bxf2 {

[%clk 00:22:23]

} {

[%emt 00:01:45]

} 45. Be4 {

[%clk 00:03:58]

} {

[%emt 00:01:12]

} Bd4 {

[%clk 00:22:14]

} {

[%emt 00:00:38]

} 46. Rc7+ {

[%clk 00:04:03]

} {

[%emt 00:00:25]

} Kf8 {

[%clk 00:22:17]

} {

[%emt 00:00:28]

} 47. Kh3 {

[%clk 00:03:02]

} {

[%emt 00:01:31]

} Be5 {

[%clk 00:20:10]

} {

[%emt 00:02:37]

} 48. Rc2 {

[%clk 00:03:28]

} {

[%emt 00:00:04]

} g5 {

[%clk 00:17:45]

} {

[%emt 00:02:55]

} 49. Kg2 {

[%clk 00:02:47]

} {

[%emt 00:01:10]

} Rb4 {

[%clk 00:17:43]

} {

[%emt 00:00:33]

} 50. Re2 {

[%clk 00:02:15]

} {

[%emt 00:01:02]

} Bf4 {

[%clk 00:18:01]

} {

[%emt 00:00:12]

} 51. Bg6 {

[%clk 00:02:34]

} {

[%emt 00:00:11]

} h4 {

[%clk 00:18:17]

} {

[%emt 00:00:14]

} 52. Bf5 {

[%clk 00:02:54]

} {

[%emt 00:00:10]

} Rb3 {

[%clk 00:18:08]

} {

[%emt 00:00:39]

} 53. Bg4 {

[%clk 00:03:12]

} {

[%emt 00:00:12]

} Be3 {

[%clk 00:18:31]

} {

[%emt 00:00:09]

} 54. Be6 {

[%clk 00:02:56]

} {

[%emt 00:00:45]

} Ra3 {

[%clk 00:18:53]

} {

[%emt 00:00:08]

} 55. Kh3 {

[%clk 00:02:21]

} {

[%emt 00:01:05]

} Ke7 {

[%clk 00:19:16]

} {

[%emt 00:00:07]

} 56. Ra2 {

[%clk 00:02:23]

} {

[%emt 00:00:28]

} Rc3 {

[%clk 00:19:33]

} {

[%emt 00:00:13]

} 57. Bf5 {

[%clk 00:02:35]

} {

[%emt 00:00:17]

} Kd6 {

[%clk 00:19:37]

} {

[%emt 00:00:28]

} 58. Be4 {

[%clk 00:02:53]

} {

[%emt 00:00:12]

} Rc1 {

[%clk 00:19:50]

} {

[%emt 00:00:17]

} 59. Ra5 {

[%clk 00:02:48]

} {

[%emt 00:00:33]

} Rh1+ {

[%clk 00:20:01]

} {

[%emt 00:00:19]

} 60. Kg2 {

[%clk 00:03:01]

} {

[%emt 00:00:17]

} Rg1+ {

[%clk 00:20:25]

} {

[%emt 00:00:06]

} 61. Kh2 {

[%clk 00:03:15]

} {

[%emt 00:00:16]

} Rg3 {

[%clk 00:20:37]

} {

[%emt 00:00:18]

} 62. Rd5+ {

[%clk 00:03:32]

} {

[%emt 00:00:13]

} Kc7 {

[%clk 00:20:55]

} {

[%emt 00:00:13]

} 63. Rf5 {

[%clk 00:03:52]

} {

[%emt 00:00:10]

} Bf4 {

[%clk 00:20:58]

} {

[%emt 00:00:26]

} 64. Kh1 {

[%clk 00:03:55]

} {

[%emt 00:00:28]

} Kd6 {

[%clk 00:20:47]

} {

[%emt 00:00:41]

} 65. Rd5+ {

[%clk 00:04:15]

} {

[%emt 00:00:10]

} Ke6 {

[%clk 00:21:09]

} {

[%emt 00:00:08]

} 66. Rb5 {

[%clk 00:04:37]

} {

[%emt 00:00:08]

} h3 {

[%clk 00:20:02]

} {

[%emt 00:01:37]

} 67. Bf5+ {

[%clk 00:04:43]

} {

[%emt 00:00:25]

} Kf6 {

[%clk 00:19:49]

} {

[%emt 00:00:42]

} 68. Bg4 {

[%clk 00:04:50]

} {

[%emt 00:00:23]

} h2 {

[%clk 00:20:05]

} {

[%emt 00:00:13]

} 69. Rb1 {

[%clk 00:05:06]

} {

[%emt 00:00:14]

} Ke5 {

[%clk 00:20:23]

} {

[%emt 00:00:12]

} 70. Rd1 {

[%clk 00:05:24]

} {

[%emt 00:00:11]

} Kf6 {

[%clk 00:20:19]

} {

[%emt 00:00:35]

} 71. Re1 {

[%clk 00:05:28]

} {

[%emt 00:00:27]

} Kf7 {

[%clk 00:20:39]

} {

[%emt 00:00:10]

} 72. Rd1 {

[%clk 00:05:37]

} {

[%emt 00:00:21]

} Ke8 {

[%clk 00:20:51]

} {

[%emt 00:00:17]

} 73. Bh5+ {

[%clk 00:05:32]

} {

[%emt 00:00:36]

} Ke7 {

[%clk 00:21:17]

} {

[%emt 00:00:04]

} 74. Bg4 {

[%clk 00:05:55]

} {

[%emt 00:00:06]

} Kf6 {

[%clk 00:21:11]

} {

[%emt 00:00:36]

} 75. Re1 {

[%clk 00:06:22]

} {

[%emt 00:00:03]

} Kf7 {

[%clk 00:21:33]

} {

[%emt 00:00:08]

} 76. Bh5+ {

[%clk 00:06:45]

} {

[%emt 00:00:08]

} Kf8 {

[%clk 00:21:53]

} {

[%emt 00:00:10]

} 77. Bg4 {

[%clk 00:07:12]

} {

[%emt 00:00:04]

} Kg7 {

[%clk 00:21:50]

} {

[%emt 00:00:33]

} 78. Rd1 {

[%clk 00:07:35]

} {

[%emt 00:00:07]

} Kf6 {

[%clk 00:22:00]

} {

[%emt 00:00:19]

} 79. Re1 {

[%clk 00:08:00]

} {

[%emt 00:00:05]

} Be5 {

[%clk 00:21:47]

} {

[%emt 00:00:43]

} 80. Rd1 {

[%clk 00:08:12]

} {

[%emt 00:00:16]

} Ke7 {

[%clk 00:21:55]

} {

[%emt 00:00:24]

} 81. Rd7+ {

[%clk 00:08:31]

} {

[%emt 00:00:11]

} Ke8 {

[%clk 00:21:41]

} {

[%emt 00:00:44]

} 82. Rd1 {

[%clk 00:08:48]

} {

[%emt 00:00:12]

} Bc7 {

[%clk 00:21:49]

} {

[%emt 00:00:23]

} 83. Rc1 {

[%clk 00:08:55]

} {

[%emt 00:00:24]

} Bd6 {

[%clk 00:22:07]

} {

[%emt 00:00:12]

} 84. Re1+ {

[%clk 00:09:00]

} {

[%emt 00:00:24]

} Kd8 {

[%clk 00:22:25]

} {

[%emt 00:00:12]

} 85. Rc1 {

[%clk 00:09:01]

} {

[%emt 00:00:28]

} Bf4 {

[%clk 00:22:24]

} {

[%emt 00:00:32]

} 86. Rd1+ {

[%clk 00:09:10]

} {

[%emt 00:00:20]

} Kc7 {

[%clk 00:22:50]

} {

[%emt 00:00:05]

} 87. Bh5 {

[%clk 00:08:05]

} {

[%emt 00:01:35]

} Rh3 {

[%clk 00:22:43]

} {

[%emt 00:00:36]

} 88. Bg4 {

[%clk 00:08:30]

} {

[%emt 00:00:06]

} Rh8 {

[%clk 00:23:08]

} {

[%emt 00:00:05]

} 89. Bf5 {

[%clk 00:08:40]

} {

[%emt 00:00:20]

} Kb6 {

[%clk 00:23:28]

} {

[%emt 00:00:10]

} 90. Bg4 {

[%clk 00:09:06]

} {

[%emt 00:00:03]

} Kc5 {

[%clk 00:23:55]

} {

[%emt 00:00:03]

} 91. Be6 {

[%clk 00:09:23]

} {

[%emt 00:00:13]

} Kb4 {

[%clk 00:24:19]

} {

[%emt 00:00:07]

} 92. Bg4 {

[%clk 00:09:44]

} {

[%emt 00:00:10]

} Kc3 {

[%clk 00:24:41]

} {

[%emt 00:00:08]

} 93. Bf5 {

[%clk 00:10:10]

} {

[%emt 00:00:03]

} Rb8 {

[%clk 00:25:03]

} {

[%emt 00:00:08]

} 94. Be4 {

[%clk 00:10:25]

} {

[%emt 00:00:15]

} Rb5 {

[%clk 00:25:04]

} {

[%emt 00:00:29]

} 95. Rd3+ {

[%clk 00:07:55]

} {

[%emt 00:04:03]

} Kc4 {

[%clk 00:27:09]

} {

[%emt 00:00:28]

} 96. Rd1 {

[%clk 00:08:08]

} {

[%emt 00:00:17]

} Re5 {

[%clk 00:27:30]

} {

[%emt 00:00:09]

} 97. Bg6 {

[%clk 00:08:23]

} {

[%emt 00:00:14]

} Re3 {

[%clk 00:27:43]

} {

[%emt 00:00:18]

} 98. Kg2 {

[%clk 00:08:27]

} {

[%emt 00:00:26]

} Re2+ {

[%clk 00:27:54]

} {

[%emt 00:00:20]

} 99. Kh1 {

[%clk 00:08:38]

} {

[%emt 00:00:18]

} Bd2 {

[%clk 00:28:12]

} {

[%emt 00:00:12]

} 100. Bh5 {

[%clk 00:08:25]

} {

[%emt 00:00:43]

} Rf2 {

[%clk 00:28:33]

} {

[%emt 00:00:09]

} 101. Ra1 {

[%clk 00:08:22]

} {

[%emt 00:00:31]

} Kd3 {

[%clk 00:28:14]

} {

[%emt 00:00:50]

} 102. Ra2 {

[%clk 00:06:55]

} {

[%emt 00:01:58]

} Ke3 {

[%clk 00:28:38]

} {

[%emt 00:00:06]

} 103. Ra3+ {

[%clk 00:07:07]

} {

[%emt 00:00:18]

} Kf4 {

[%clk 00:28:57]

} {

[%emt 00:00:11]

} 104. Ra1 {

[%clk 00:07:02]

} {

[%emt 00:00:35]

} Kg3 {

[%clk 00:29:18]

} {

[%emt 00:00:09]

} 105. Rb1 {

[%clk 00:06:06]

} {

[%emt 00:01:26]

} Be3 {

[%clk 00:28:59]

} {

[%emt 00:00:49]

} 106. Bg4 {

[%clk 00:05:36]

} {

[%emt 00:01:00]

} Rg2 {

[%clk 00:29:17]

} {

[%emt 00:00:12]

} 0-1

[Event "Kadrioru MK Open A"]
[Site "Tallinn, Paul Keres Chess House, Estonia"]
[Date "2023.02.12"]
[Round "5.5"]
[White "Shvyrjov, Igor"]
[Black "Valdats, Reinis"]
[Result "1-0"]
[TimeControl "90 minutes with 30 second increment from move 1"]
[WhiteTitle "GM"]
[WhiteElo "2369"]
[BlackElo "1736"]

1. d4 {

[%clk 01:30:57]

} {

[%emt 00:00:02]

} Nf6 {

[%clk 01:30:51]

} {

[%emt 00:00:09]

} 2. Nf3 {

[%clk 01:31:18]

} {

[%emt 00:00:09]

} e6 {

[%clk 01:31:15]

} {

[%emt 00:00:07]

} 3. c3 {

[%clk 01:31:27]

} {

[%emt 00:00:21]

} d5 {

[%clk 01:30:13]

} {

[%emt 00:01:32]

} 4. Bg5 {

[%clk 01:31:44]

} {

[%emt 00:00:12]

} Be7 {

[%clk 01:26:51]

} {

[%emt 00:03:53]

} 5. Nbd2 {

[%clk 01:31:30]

} {

[%emt 00:00:43]

} Nbd7 {

[%clk 01:26:22]

} {

[%emt 00:00:59]

} 6. e3 {

[%clk 01:31:37]

} {

[%emt 00:00:24]

} O-O {

[%clk 01:26:18]

} {

[%emt 00:00:34]

} 7. Bd3 {

[%clk 01:31:48]

} {

[%emt 00:00:19]

} c5 {

[%clk 01:26:15]

} {

[%emt 00:00:33]

} 8. O-O {

[%clk 01:31:48]

} {

[%emt 00:00:29]

} Re8 {

[%clk 01:25:00]

} {

[%emt 00:01:45]

} 9. Ne5 {

[%clk 01:29:46]

} {

[%emt 00:02:32]

} Qb6 {

[%clk 01:14:55]

} {

[%emt 00:10:35]

} 10. Qb1 {

[%clk 01:25:30]

} {

[%emt 00:04:45]

} h6 {

[%clk 01:14:04]

} {

[%emt 00:01:22]

} 11. Bxf6 {

[%clk 01:25:36]

} {

[%emt 00:00:25]

} Nxf6 {

[%clk 01:13:21]

} {

[%emt 00:01:12]

} 12. f4 {

[%clk 01:25:22]

} {

[%emt 00:00:44]

} Qc7 {

[%clk 01:09:38]

} {

[%emt 00:04:14]

} 13. Rf2 {

[%clk 01:22:30]

} {

[%emt 00:03:21]

} Bd7 {

[%clk 01:06:19]

} {

[%emt 00:03:49]

} 14. g4 {

[%clk 01:22:09]

} {

[%emt 00:00:51]

} Bd6 {

[%clk 01:01:39]

} {

[%emt 00:05:10]

} 15. Rg2 {

[%clk 00:59:30]

} {

[%emt 00:23:09]

} Bc6 {

[%clk 00:51:29]

} {

[%emt 00:10:40]

} 16. g5 {

[%clk 00:51:28]

} {

[%emt 00:08:32]

} hxg5 {

[%clk 00:50:00]

} {

[%emt 00:01:59]

} 17. Rxg5 {

[%clk 00:50:24]

} {

[%emt 00:01:34]

} b5 {

[%clk 00:45:14]

} {

[%emt 00:05:16]

} 18. Qf1 {

[%clk 00:38:48]

} {

[%emt 00:12:05]

} c4 {

[%clk 00:33:52]

} {

[%emt 00:11:52]

} 19. Bc2 {

[%clk 00:37:50]

} {

[%emt 00:01:28]

} Nd7 {

[%clk 00:29:28]

} {

[%emt 00:04:55]

} 20. Qg2 {

[%clk 00:29:59]

} {

[%emt 00:08:21]

} Bf8 {

[%clk 00:29:03]

} {

[%emt 00:00:55]

} 21. Bh7+ {

[%clk 00:22:46]

} {

[%emt 00:07:43]

} Kh8 {

[%clk 00:16:35]

} {

[%emt 00:12:58]

} 22. Nxf7+ {

[%clk 00:18:24]

} {

[%emt 00:04:53]

} Kxh7 {

[%clk 00:16:53]

} {

[%emt 00:00:12]

} 23. Rh5+ {

[%clk 00:18:47]

} {

[%emt 00:00:06]

} Kg8 {

[%clk 00:17:15]

} {

[%emt 00:00:09]

} 24. Qg6 {

[%clk 00:19:11]

} {

[%emt 00:00:05]

} Nf6 {

[%clk 00:12:05]

} {

[%emt 00:05:40]

} 25. Rh8# {

[%clk 00:19:23]

} {

[%emt 00:00:18]

} 1-0

[ePGN "0.1;DGT LiveChess/2.2.5"]